Cogmind - Beta 13 @@@ ROGUE MODE // 2024.06.20 @ 13:35:23 Player: wad Result: Destroyed self via exploding Nuclear Reactor Performance ------------- Evolutions (0) 0 Regions Visited (1) 200 Robots Destroyed (13) 65 Value Destroyed (211) 211 Prototype IDs (0) 0 Alien Tech Used (0) 0 Bonus (0) 0 TOTAL SCORE: 476 Bonus ------- None Cogmind --------- Core Integrity 0/250 Matter 280/300 Energy 125/125 System Corruption 0% Temperature Cool (0) Movement Walking (120) Location -10/Materials Parts ------- > --- POWER (1) -------- Light Ion Engine > --- PROPULSION (2) --- Aluminum Leg > --- UTILITY (2) ------ Hacking Suite > --- WEAPON (2) ------- Assault Rifle Light Assault Rifle > --- INVENTORY (5) ---- Light Ion Engine Aluminum Leg Aluminum Leg Grenade Launcher Grenade Launcher Peak State ------------ > --- POWER ------------ Light Ion Engine > --- PROPULSION ------- Aluminum Leg Aluminum Leg > --- UTILITY ---------- Hacking Suite > --- WEAPON ----------- Medium Laser Assault Rifle > --- INVENTORY -------- Light Ion Engine Aluminum Leg Small Laser Light Assault Rifle [Rating: 8] Favorites ----------- Power Light Ion Engine Engine Light Ion Engine Propulsion Aluminum Leg Leg Aluminum Leg Utility Hacking Suite Hackware Hacking Suite Weapon Assault Rifle Energy Gun Medium Laser Ballistic Gun Assault Rifle Build | -11 -10 ------- Run | Yrd Mat Slots Evolved . | . . Power . | . . Propulsion . | . . Utility . | . . Weapon . | . . Parts Attached 10 | 5 5 Power 2 | 1 1 Engine 2 | 1 1 Core . | . . Reactor . | . . Propulsion 3 | 2 1 Treads . | . . Leg 3 | 2 1 Wheel . | . . Hover . | . . Flight . | . . Utility 1 | . 1 Device . | . . Storage . | . . Processor . | . . Hackware 1 | . 1 Protection . | . . Artifact . | . . Weapon 4 | 2 2 Energy Gun 1 | 1 . Energy Cannon . | . . Ballistic Gun 3 | 1 2 Ballistic Cannon . | . . Launcher . | . . Special Weapon . | . . Impact Weapon . | . . Slashing Weapon . | . . Piercing Weapon . | . . Special Melee Weapon . | . . Unidentified Prototypes . | . . Parts Lost 1 | . 1 Power . | . . Propulsion 1 | . 1 Utility . | . . Weapon . | . . Highest Loss Streak 1 | . 1 To Critical Strikes . | . . Average Slot Usage (%) 78 | . 78 Engine 14 | . 14 Leg 25 | . 25 Hackware 11 | . 11 Energy Gun 3 | . 3 Ballistic Gun 22 | . 22 Naked Turns . | . . Heaviest Build 7 | 7 7 Greatest Support 20 | 20 20 Greatest Overweight (x) . | . . Average Overweight (x) . | . . Largest Inventory Capacity 5 | 5 5 Average Capacity 5 | 5 5 Most Carried 5 | 3 5 Average Carried 3 | . 4 Final Capacity 5 | 5 5 Final Carried 5 | 3 5 Class Distribution -------------------- 100% | Mutant Dominant Class ---------------- Mutant | -10/Materials Resources | -11 -10 ----------- Run | Yrd Mat Matter Collected 419 | 253 166 Remotely . | . . Salvage Created 285 | 37 248 Parts 24 | 3 21 Haulers Intercepted 1 | . 1 Recyclers Shooed 2 | . 2 Parts Field Recycled . | . . Retrieved Matter . | . . Parts Self-Destructed . | . . Prevented . | . . Kills | -11 -10 ------- Run | Yrd Mat Combat Hostiles Destroyed 10 | 1 9 Guns 10 | 1 9 Classes Destroyed 5 | 1 4 Worker 1 | . 1 Hauler 1 | . 1 Operator 1 | . 1 Swarmer 7 | . 7 Grunt 3 | 1 2 Best Kill Streak 6 | 1 6 Combat Bots Only 6 | 1 6 Max Kills in Single Turn 2 | 1 2 Gunslinging 1 | . 1 Exploded . | . . Melee . | . . Uniques/NPCs Destroyed . | . . Combat | -11 -10 -------- Run | Yrd Mat Hostile Shots Fired 55 | 1 54 Missed 16 | . 16 Damage Taken 547 | 11 536 Core 251 | . 251 Absorbed by Shields . | . . Core Remaining (%) 100 | 100 . Volleys Fired 38 | 2 36 Largest 2 | 2 2 Hottest 70 | 70 70 Shots Fired 76 | 4 72 Gun 76 | 4 72 Cannon . | . . Launcher . | . . Special . | . . Kinetic 68 | 2 66 Thermal 8 | 2 6 Explosive . | . . Electromagnetic . | . . Robot Hit Streak 4 | 2 4 Robot Miss Streak 4 | . 4 Penetration Max . | . . Secondary Targets 3 | . 3 Max Gunslinging Chain 1 | . 1 Shots Hit Robots 37 | 2 35 Core Hits 21 | 2 19 Critical Kills . | . . Critical Parts Destroyed . | . . Critical Strikes . | . . Melee Attacks . | . . Impact . | . . Slashing . | . . Piercing . | . . Sneak Attacks . | . . Combat Hostiles . | . . Follow-up Attacks . | . . Damage Inflicted 471 | 36 435 Guns 395 | 36 359 Cannons . | . . Explosions 76 | . 76 Melee . | . . Ramming . | . . Kinetic 345 | 23 322 Thermal 50 | 13 37 Explosive 76 | . 76 Electromagnetic . | . . Impact . | . . Slashing . | . . Piercing . | . . Highest Corruption . | . . Average Corruption . | . . Corruption Purged . | . . Corruption Blocked . | . . Overload Shots . | . . Overflow Damage . | . . Projectiles . | . . Explosions . | . . Melee . | . . Knockbacks . | . . Impact . | . . Kinetic . | . . Secondary . | . . Self-Inflicted Damage 194 | . 194 Shots 2 | . 2 Rammed . | . . Targets Rammed . | . . Kicked . | . . Crushed . | . . Highest Temperature 27 | 15 27 Average Temperature 9 | 9 9 Received Heat Transfer 90 | 6 84 Siege Activations . | . . Robots Corrupted . | . . Combat Hostiles . | . . Parts Fried . | . . Impact Corruptions . | . . Robots Melted . | . . Combat Hostiles . | . . Parts Melted . | . . Heat Transferred 148 | 37 111 Parts Sabotaged . | . . Parts Stolen . | . . Parts Stripped . | . . Power Chain Reactions . | . . Alert | -11 -10 ------- Run | Yrd Mat Peak Influence 294 | 20 294 Initial 13 | . 13 Average 64 | 4 82 Maximum Alert Level 1 | . 1 Low Security (%) 91 | 100 89 Level 1 8 | . 10 Level 2 . | . . Level 3 . | . . Level 4 . | . . Level 5 . | . . High Security . | . . Max Security . | . . Squads Dispatched 1 | . 1 Investigation . | . . Extermination . | . . Reinforcement 1 | . 1 Assault . | . . Garrison . | . . Intercept . | . . Searches Triggered . | . . Construction Impeded . | . . Haulers Reinforced . | . . Active Scanning Responses . | . . Cargo Convoy Interrupts . | . . Stealth | -11 -10 --------- Run | Yrd Mat Distress Signals 2 | . 2 Communications Jammed . | . . Distress Signals . | . . Times Spotted 17 | 1 16 Peak Tracking Total 10 | 1 10 Tactical Retreats 1 | . 1 Traps | -11 -10 ------- Run | Yrd Mat Traps Triggered 1 | . 1 Indirectly . | . . Trap Hack Attempts . | . . Triggered . | . . Disarmed . | . . Reprogrammed . | . . Reused . | . . Traps Extracted . | . . Installed . | . . Triggered . | . . Machines | -11 -10 ---------- Run | Yrd Mat Machines Disabled 2 | . 2 Max in Single Turn 2 | . 2 Machines Repaired . | . . Machines Dismantled . | . . Machines Sabotaged . | . . Overloaded Fab Kills . | . . Hacking | -11 -10 --------- Run | Yrd Mat Machines Accessed 2 | . 2 Terminals 2 | . 2 Fabricators . | . . Repair Stations . | . . Recycling Units . | . . Scanalyzers . | . . Garrison Access . | . . Total Hacks 9 | . 9 Successful 6 | . 6 Failed 3 | . 3 Catastrophic . | . . Database Lockouts . | . . Manual . | . . Terminals 9 | . 9 Fabricators . | . . Repair Stations . | . . Recycling Units . | . . Scanalyzers . | . . Garrison Access . | . . Terminal Hacks 6 | . 6 Record 3 | . 3 Branch Access Points 1 | . 1 Alert Level 1 | . 1 Hauler Manifests 1 | . 1 Fabricator Hacks . | . . Repair Station Hacks . | . . Recycling Unit Hacks . | . . Scanalyzer . | . . Garrison Access Hacks . | . . Unauthorized Hacks . | . . Terminals . | . . Fabricators . | . . Repair Stations . | . . Recycling Units . | . . Scanalyzers . | . . Garrison Access . | . . Data Cores Recovered . | . . Used . | . . Hacking Detections . | . . Full Trace Events . | . . Feedback Events . | . . Feedback Blocked . | . . Robot Schematics Acquired . | . . Robots Built . | . . Authchips . | . . Time . | . . Total Robot Build Rating . | . . Part Schematics Acquired . | . . Parts Built . | . . Authchips . | . . Time . | . . Total Part Build Rating . | . . Parts Repaired . | . . Time . | . . Parts Recycled . | . . Recycled Matter . | . . Retrieved Matter . | . . Retrieved Components . | . . Parts Scanalyzed . | . . Part Schematics Acquired . | . . Parts Damaged . | . . Bothacking | -11 -10 ------------ Run | Yrd Mat Used RIF Installer . | . . Robots Hacked . | . . Non-combat . | . . Combat . | . . Robot Hacks Applied . | . . Relay Couplers Released . | . . Fabnet Peak Effective % . | . . Robots Rewired . | . . Allies Hacked . | . . Hacks Repelled . | . . Allies | -11 -10 -------- Run | Yrd Mat Total Allies . | . . Largest Group . | . . Highest-Rated Group . | . . Highest-Rated Ally . | . . Total Orders . | . . Ally Attacks . | . . Total Damage . | . . Kills . | . . Allies Corrupted . | . . Allies Melted . | . . Intel | -11 -10 ------- Run | Yrd Mat Robot Analysis Total . | . . Derelict Logs Recovered . | . . Drone Launches . | . . Drone Recoveries . | . . Exploration | -11 -10 ------------- Run | Yrd Mat Turns Passed 475 | 110 365 Spaces Moved 290 | 90 200 Core 23 | 23 . Treads . | . . Legs 267 | 67 200 Wheels . | . . Hover . | . . Flight . | . . Fastest Speed 50 | 50 120 Average Speed 114 | 102 120 Slowest Speed 120 | 120 120 Overloaded Moves . | . . Propulsion Burnouts . | . . Robots Hopped . | . . Cave-ins Triggered . | . . Exploration Rate (%) 20 | 5 35 Regions Visited 1 Branch Regions . Pre-discovered Areas . | . . Known Exits Taken . | . . Unknown Exits Taken 1 | 1 . Scrap Searched . | . . Spaces Dug . | . . Terrain Destroyed 7 | . 7 Melee . | . . Projectile . | . . AOE 7 | . 7 Terrain Rammed . | . . Walls Destroyed . | . . Machines Disabled . | . . Actions | -11 -10 --------- Run | Yrd Mat Total 368 | 104 264 Wait 5 | . 5 Move 289 | 89 200 Hop . | . . Pick Up 20 | 8 12 Fast Attach . | . . Attach 9 | 5 4 Detach . | . . Swap 1 | . 1 Drop 6 | . 6 Fire 38 | 2 36 Melee . | . . Ram . | . . Kick . | . . Crush . | . . Escape Stasis . | . . Rewire . | . . Trap . | . . Miscellaneous . | . . Route ------- -11/Scrapyard -10/Materials (discovered 1 exit: *Min) History --------- Turn | Location | Event 2 | -11/Scrapyard | Met Revision 17 84 | -11/Scrapyard | Discovered new exit (range 8) 111 | -11/Scrapyard | Entered Materials 309 | -10/Materials | Build established: Mutant 352 | -10/Materials | Discovered new exit (range 15) 391 | -10/Materials | Identified exit to Mines 476 | -10/Materials | Destroyed self via exploding Nuclear Reactor Last Messages --------------- S-10 Pest destroyed. K-01 Serf cleans the Terminal. S-10 Pest destroyed. Switching to secondary target: S-10 Pest. K-01 Serf collects debris. Aluminum Leg destroyed. K-01 Serf collects debris. S-10 Pest destroyed. K-01 Serf collects debris. S-10 Pest destroyed. Dropped Lgt. Ion Engine. Acquired Lgt. Ion Engine. Acquired 19 matter. Acquired 45 matter. Acquired 2 matter. W-16 Scout sends out distress signal. K-01 Serf cleans the Nuclear Reactor. S-10 Pest destroyed. Nuclear Reactor explodes. K-01 Serf destroyed. Map ----- +----------------------------------------------------+ | ?????????????????????????????????????????????? | | ?????????????????????????????????????????????? | | ?????????????????????????????????????????????? | | ?????????????????????????????????????????????? | | ?????????????????????????????????????????????? | | ?????????????????????????????????????????????? | | ?????????????????????????????????????????????? | | ?????????????????????????????????????????????? | | ?????????????????????????????????????????????? | | ?????????????????????????????????????????????? | | ?????????????????????????????????????????????? | | ?????????????????????????????????????????????? | | ?????????????????????????????????????????????? | | ?????????????????????????????????????????????? | | ?????????????????????????????????????????????? | | ?????????????????????????????????????????????? | | ?????????????????????????????????????????????? | | ?????????????????? ????#####+##?????????????? | | ??????????????#####+#### #?????????????? | | ??????????????# #?????????????? | | ??????????????# #?????????????? | | ??????????### # #?????????????? | | ??????????+ + #?????????????? | | ??????????????# % #?????????????? | | ??????????????# *%= #?????????????? | | ??????????????# [ @ ! #?????? ? #???? | | ????#?#???????# =% %*# #?????? #???? | | ??# ? ??????#[*t =[= #???? #????? > #???? | | ??# ??????####+#####????????????? #???? | | ??# T ########?# #???????????????? #???? | | ??? # """ #?#[#????????????????" #???? | | ??? # """ ### ###?????########## #????? | | ???# ## """ # * ####### #####? | | ???# ## # # ? | | ???# ## + T """ + "? | | ???# ## = # """ # "? | | ???# ## # !####### """ # "" | | ??## ## #######?????# # | | ??#T ##################### + "" | | ???# # "" | | ???# #? "? | | ???# #? ? | | ???# ###+################## ###+## | | ???# #?????????######T##### [[ [[ | | ???# #?????????# #| [[ % !# | | ???# #?????????# """ """ # ! ! # | | ???# #?????????# "R" """ # [# | | ???# #?????????# " " """ + # | | ???# #?????????# # # | | ???# #?????????# # # | +----------------------------------------------------+ Best States ------------- Heat Dissipation 25 Energy Generation 10 Energy Capacity 125 Matter Stores 300 Matter Capacity 300 Sight Range 16 Terrain Scan Density 10 Evasion (%) 55 Offensive Hacking 10 Item Schematics ----------------- None Robot Schematics ------------------ None Fabricated ------------ Nothing Alien Tech Used ----------------- None Achievements -------------- None Challenges ------------ None Game ------ Seed GravmagFluxNetwork Manual? 0 Play Time 00:11:06 Cumulative 0.7 hours Start 2024.06.20 @ 13:25:17 End 2024.06.20 @ 13:35:23 Sessions 1 Manual Loads 0 Difficulty Rogue Special Mode None Game No. 2 Rogue 2 Adventurer 0 Explorer 0 Win Type - Total 0 Types 0/0/0/0/0/0/0/0/0 Lore% 1 Gallery% 4 Achievement% 4 Wizard Run 0 Options --------- Layout 1 ASCII 0 Keyboard 0 Movement Arrows Keybinds 0 Fullscreen 1 Font 24/Smallcaps Map View 50x35 Zoom Use 0% Tactical HUD 0 Map Filters NONE Filters NONE Steam 1 RUN: 3906ad29-49b1-4f9d-af35-ec77f9321c80